[Event "Chess House GM December 2019"]
[Site "Aarhus"]
[Date "2019.12.12"]
[Round "1.4"]
[White "Vinter-Schou, Uffe"]
[Black "Svane, Frederik"]
[Result "0-1"]
[ECO "A28"]
[WhiteElo "2359"]
[BlackElo "2398"]
[Annotator "ChessBase"]
[PlyCount "52"]
[EventDate "2019.12.11"]
[EventType "tourn"]
[EventCountry "DEN"]
[SourceTitle "playchess.com"]
[Source "ChessBase"]
[SourceQuality "1"]
[TimeControl "40/5400+30:1800+30"]

1. c4 {[%emt 0:00:00]} e5 {[%emt 0:02:19]} 2. Nc3 {[%emt 0:00:00]} Nf6 {[%emt 0:00:33]} 3. Nf3 {[%emt 0:00:09]} Nc6 {[%emt 0:00:09]} 4. e3 {[%emt 0:00:24]} Bb4 {[%emt 0:00:06]} 5. Qc2 {[%emt 0:00:24]} O-O {[%emt 0:00:38]} 6. Nd5 {[%emt 0:04:17]} Re8 {[%emt 0:00:06]} 7. Qf5 {[%emt 0:01:27]} d6 {[%emt 0:24:56]} 8. Nxf6+ {[%emt 0:00:11]} gxf6 {[%emt 0:01:08]} 9. Qh5 {[%emt 0:00:13]} e4 {[%emt 0:03:23]} 10. a3 {[%emt 0:01:05]} exf3 {[%emt 0:02:47]} 11. Bd3 {[%emt 0:06:53]} f5 {[%emt 0:19:17]} 12. gxf3 {[%emt 0:19:58]} Bc5 {[%emt 0:05:45]} 13. Kf1 {[%emt 0:04:36]} Qf6 {[%emt 0:04:58]} 14. Rb1 {[%emt 0:03:34]} Ne5 {[%emt 0:04:38]} 15. Bc2 {[%emt 0:18:19]} Ng6 {[%emt 0:08:05]} 16. Rg1 {[%emt 0:14:22]} f4 {[%emt 0:08:24]} 17. d4 {[%emt 0:07:07]} fxe3 {[%emt 0:02:53]} 18. fxe3 {[%emt 0:02:40]} Bxd4 {[%emt 0:03:13]} 19. exd4 {[%emt 0:00:21]} Qxd4 {[%emt 0:00:02]} 20. Bxg6 {[%emt 0:04:43]} Re1+ {[%emt 0:00:39]} 21. Kxe1 {[%emt 0:00:07]} Qxg1+ {[%emt 0:00:04]} 22. Ke2 {[%emt 0:00:17]} hxg6 {[%emt 0:00:19]} 23. Qg5 {[%emt 0:05:44]} Qxh2+ {[%emt 0:00:07]} 24. Kd1 {[%emt 0:02:02]} Bf5 {[%emt 0:00:10]} 25. Ra1 {[%emt 0:00:06]} Re8 {[%emt 0:02:12]} 26. Be3 {[%emt 0:00:35]} Bd3 {[%emt 0:00:07]} 0-1

[Event "Chess House GM December 2019"]
[Site "Aarhus"]
[Date "2019.12.12"]
[Round "1.5"]
[White "Olsen, Filip Boe"]
[Black "Vasli, Aref"]
[Result "1/2-1/2"]
[ECO "E05"]
[WhiteElo "2341"]
[BlackElo "2413"]
[Annotator "ChessBase"]
[PlyCount "67"]
[EventDate "2019.12.11"]
[EventType "tourn"]
[EventCountry "DEN"]
[SourceTitle "playchess.com"]
[Source "ChessBase"]
[SourceQuality "1"]
[TimeControl "40/5400+30:1800+30"]

1. Nf3 {[%emt 0:00:00]} Nf6 {[%emt 0:00:00]} 2. c4 {[%emt 0:00:00]} e6 {[%emt 0:00:21]} 3. g3 {[%emt 0:00:10]} d5 {[%emt 0:00:41]} 4. Bg2 {[%emt 0:00:27]} Be7 {[%emt 0:01:05]} 5. d4 {[%emt 0:00:19]} dxc4 {[%emt 0:03:13]} 6. Ne5 {[%emt 0:01:36]} O-O {[%emt 0:00:57]} 7. Nc3 {[%emt 0:00:50]} Nc6 {[%emt 0:02:13]} 8. Bxc6 {[%emt 0:00:30]} bxc6 9. Nxc6 {[%emt 0:00:27]} Qe8 {[%emt 0:02:05]} 10. Nxe7+ Qxe7 {[%emt 0:00:02]} 11. Qa4 {[%emt 0:00:43]} c5 {[%emt 0:22:22]} 12. dxc5 Qxc5 {[%emt 0:00:23]} 13. Be3 {[%emt 0:00:53]} Qc7 {[%emt 0:00:33]} 14. f3 {[%emt 0:03:05]} Bb7 {[%emt 0:10:25]} 15. O-O-O {[%emt 0:05:06]} Nd5 {[%emt 0:06:16]} 16. Bd4 {[%emt 0:05:57]} Rfd8 {[%emt 0:07:35]} 17. Nxd5 {[%emt 0:05:37]} Rxd5 {[%emt 0:02:49]} 18. Bc3 {[%emt 0:04:19]} Qc5 {[%emt 0:06:20]} 19. Rxd5 {[%emt 0:18:19]} Bxd5 {[%emt 0:03:02]} 20. Qd1 {[%emt 0:03:41]} Bc6 {[%emt 0:08:01]} 21. Qd4 {[%emt 0:05:46]} Qxd4 {[%emt 0:01:47]} 22. Bxd4 {[%emt 0:00:02]} e5 {[%emt 0:01:43]} 23. Bc5 {[%emt 0:05:31]} Ba4 {[%emt 0:04:47]} 24. Kd2 {[%emt 0:01:59]} a6 {[%emt 0:00:14]} 25. Rc1 {[%emt 0:04:23]} Rd8+ {[%emt 0:00:23]} 26. Ke3 {[%emt 0:00:39]} Bb5 {[%emt 0:00:43]} 27. Bb6 {[%emt 0:05:36]} Rd6 {[%emt 0:02:40]} 28. Bc7 {[%emt 0:00:50]} Rd7 {[%emt 0:00:20]} 29. Ba5 {[%emt 0:00:43]} f6 {[%emt 0:00:06]} 30. a4 {[%emt 0:01:38]} Bxa4 {[%emt 0:00:07]} 31. Rxc4 {[%emt 0:00:07]} Bb5 {[%emt 0:00:09]} 32. Rc8+ {[%emt 0:00:05]} Kf7 {[%emt 0:00:06]} 33. Rc7 {[%emt 0:00:10]} Rxc7 {[%emt 0:00:05]} 34. Bxc7 {[%emt 0:00:05]} 1/2-1/2

[Event "Chess House GM December 2019"]
[Site "Aarhus"]
[Date "2019.12.12"]
[Round "2.1"]
[White "Jacobsen, Mikkel Manosri"]
[Black "Thybo, Jesper Sondergaard"]
[Result "0-1"]
[ECO "A61"]
[WhiteElo "2348"]
[BlackElo "2576"]
[Annotator "RC"]
[PlyCount "82"]
[EventDate "2019.12.11"]
[EventType "tourn"]
[EventCountry "DEN"]
[SourceTitle "playchess.com"]
[Source "ChessBase"]
[SourceQuality "1"]
[TimeControl "40/5400+30:1800+30"]

1. d4 {[%emt 0:00:00]} Nf6 {[%emt 0:00:00]} 2. c4 {[%emt 0:00:00]} e6 {[%emt 0:00:00]} 3. Nf3 {[%emt 0:00:00]} c5 {[%emt 0:00:00]} 4. d5 {[%emt 0:00:10]} exd5 {[%emt 0:00:00]} 5. cxd5 {[%emt 0:00:04]} d6 {[%emt 0:00:00]} 6. Nc3 {[%emt 0:00:05]} g6 {[%emt 0:00:08]} 7. e4 {[%emt 0:00:05]} a6 {[%emt 0:00:11]} 8. a4 {[%emt 0:00:05]} Bg4 {[%emt 0:00:09]} 9. Be2 {[%emt 0:01:27]} Bxf3 {[%emt 0:00:07]} 10. Bxf3 {[%emt 0:00:05]} Nbd7 {[%emt 0:00:06]} 11. Bf4 {[%emt 0:03:08]} Qe7 {[%emt 0:00:07]} 12. O-O {[%emt 0:06:22]} Bg7 {[%emt 0:00:05]} 13. Ra3 {[%emt 0:07:57]} O-O {[%emt 0:02:59]} 14. a5 {[%emt 0:07:23]} Rab8 {[%emt 0:06:30]} 15. Re1 {[%emt 0:18:30]} h6 {[%emt 0:03:14]} 16. Na4 {[%emt 0:03:01]} Rfe8 {[%emt 0:06:22]} 17. Rae3 {[%emt 0:06:03]} Nh7 {[%emt 0:05:11]} 18. Bg4 {[%emt 0:07:01]} Nhf8 {[%emt 0:07:37]} 19. Bh3 {[%emt 0:11:14]} h5 {[%emt 0:04:43]} 20. R3e2 {[%emt 0:01:39]} Be5 {[%emt 0:15:56]} 21. Bc1 {[%emt 0:04:07]} Qh4 {[%emt 0:04:06]} 22. Qd2 {[%emt 0:00:59]} b5 {[%emt 0:01:43]} 23. axb6 {[%emt 0:05:57]} Nxb6 {[%emt 0:00:15]} 24. Nxb6 {[%emt 0:03:39]} Rxb6 {[%emt 0:00:07]} 25. f4 {[%emt 0:00:32]} Bd4+ {[%emt 0:05:18]} 26. Kh1 {[%emt 0:00:06]} Qf6 {[%emt 0:12:27]} 27. g3 {[%emt 0:03:05]} h4 {[%emt 0:01:51]} 28. Qa5 {[%emt 0:05:49]} Rb3 {[%emt 0:08:05]} 29. Qa4 {[%emt 0:02:55]} Reb8 {[%emt 0:00:19]} 30. e5 {[%emt 0:00:17]} dxe5 {[%emt 0:00:44]} 31. fxe5 {[%emt 0:00:02]} Qh8 {[%emt 0:00:16]} 32. e6 {[%emt 0:02:09]} hxg3 {[%emt 0:00:50]} 33. e7 {[%emt 0:01:47]} Qxh3 {[%emt 0:01:02]} 34. exf8=Q+ {[%emt 0:00:40]} Rxf8 {[%emt 0:00:18]} 35. Rg2 {[%emt 0:00:22]} Rf3 {[%emt 0:01:31]} 36. d6 {[%emt 0:00:44]} Qe6 {[%emt 0:02:22]} 37. Qd1 {[%emt 0:00:22]} Qd5 {[%emt 0:03:32]} 38. Be3 {[%emt 0:00:03]} Rd8 {[%emt 0:01:36]} 39. b4 {[%emt 0:01:03]} Rxd6 {[%emt 0:04:15]} 40. Bxd4 {[%emt 0:00:32]} cxd4 {[%emt 0:00:14]} 41. Re8+ {[%emt 0:00:56]} Kg7 {[%emt 0:00:17]} 0-1

[Event "Chess House GM December 2019"]
[Site "Aarhus"]
[Date "2019.12.13"]
[Round "3.1"]
[White "Thybo, Jesper Sondergaard"]
[Black "Danielsen, Henrik"]
[Result "0-1"]
[ECO "C02"]
[WhiteElo "2576"]
[BlackElo "2500"]
[Annotator "ChessBase"]
[PlyCount "70"]
[EventDate "2019.12.11"]
[EventType "tourn"]
[EventCountry "DEN"]
[SourceTitle "playchess.com"]
[Source "ChessBase"]
[SourceQuality "1"]
[TimeControl "40/5400+30:1800+30"]

1. e4 {[%emt 0:00:00]} e6 {[%emt 0:04:39]} 2. d4 {[%emt 0:00:12]} d5 {[%emt 0:00:11]} 3. e5 {[%emt 0:03:42]} b6 {[%emt 0:01:55]} 4. c3 {[%emt 0:05:26]} Qd7 {[%emt 0:00:20]} 5. Bd3 {[%emt 0:18:34]} Ba6 {[%emt 0:00:23]} 6. Bc2 {[%emt 0:01:14]} c5 {[%emt 0:00:28]} 7. Ne2 {[%emt 0:01:38]} Nc6 {[%emt 0:00:37]} 8. Be3 {[%emt 0:05:59]} cxd4 {[%emt 0:03:19]} 9. cxd4 {[%emt 0:03:02]} Bb4+ {[%emt 0:09:17]} 10. Nbc3 {[%emt 0:07:39]} Nge7 {[%emt 0:00:13]} 11. O-O {[%emt 0:00:38]} Nf5 {[%emt 0:03:23]} 12. Bxf5 {[%emt 0:05:53]} exf5 {[%emt 0:00:16]} 13. Rc1 {[%emt 0:01:41]} Bxc3 {[%emt 0:02:02]} 14. Rxc3 {[%emt 0:01:37]} O-O {[%emt 0:00:09]} 15. Re1 {[%emt 0:03:36]} Bxe2 {[%emt 0:03:53]} 16. Qxe2 {[%emt 0:04:30]} Rfc8 {[%emt 0:03:28]} 17. Qf3 {[%emt 0:08:19]} h6 {[%emt 0:04:25]} 18. Qh5 {[%emt 0:07:19]} Ne7 {[%emt 0:00:57]} 19. Rb3 {[%emt 0:03:16]} Qe6 {[%emt 0:00:29]} 20. Rc3 {[%emt 0:03:06]} Rc4 {[%emt 0:02:17]} 21. Rec1 {[%emt 0:01:54]} Rac8 {[%emt 0:00:19]} 22. Qd1 {[%emt 0:03:57]} b5 {[%emt 0:09:34]} 23. Qd2 {[%emt 0:01:16]} Qc6 {[%emt 0:02:56]} 24. a4 {[%emt 0:00:29]} bxa4 {[%emt 0:03:04]} 25. Rxc4 {[%emt 0:00:35]} dxc4 {[%emt 0:00:05]} 26. Qa5 {[%emt 0:00:23]} Nd5 {[%emt 0:00:48]} 27. Qxa7 {[%emt 0:01:17]} f4 {[%emt 0:00:47]} 28. Bd2 {[%emt 0:00:41]} f3 {[%emt 0:00:25]} 29. gxf3 {[%emt 0:01:30]} Qg6+ {[%emt 0:00:33]} 30. Kf1 {[%emt 0:00:10]} Qd3+ {[%emt 0:01:17]} 31. Ke1 {[%emt 0:00:27]} Qxf3 {[%emt 0:01:13]} 32. Qxa4 {[%emt 0:01:19]} Qe4+ {[%emt 0:00:54]} 33. Kd1 {[%emt 0:01:43]} Qxd4 {[%emt 0:00:31]} 34. Qa6 {[%emt 0:01:17]} Rd8 {[%emt 0:03:28]} 35. Ke1 {[%emt 0:00:19]} Nb4 {[%emt 0:01:54]} 0-1

[Event "Chess House GM December 2019"]
[Site "Aarhus"]
[Date "2019.12.13"]
[Round "3.3"]
[White "Olsen, Filip Boe"]
[Black "Ochsner, Bjorn Moller"]
[Result "1-0"]
[ECO "A22"]
[WhiteElo "2341"]
[BlackElo "2492"]
[Annotator "ChessBase"]
[PlyCount "77"]
[EventDate "2019.12.11"]
[EventType "tourn"]
[EventCountry "DEN"]
[SourceTitle "playchess.com"]
[Source "ChessBase"]
[SourceQuality "1"]
[TimeControl "40/5400+30:1800+30"]

1. c4 {[%emt 0:00:00]} Nf6 {[%emt 0:01:31]} 2. Nc3 {[%emt 0:00:00]} e5 {[%emt 0:01:45]} 3. g3 {[%emt 0:00:12]} c6 {[%emt 0:00:57]} 4. d4 {[%emt 0:02:26]} exd4 {[%emt 0:02:01]} 5. Qxd4 {[%emt 0:00:11]} d5 {[%emt 0:00:26]} 6. Nf3 {[%emt 0:09:08]} Be7 {[%emt 0:05:17]} 7. cxd5 {[%emt 0:04:54]} cxd5 {[%emt 0:00:21]} 8. Bg2 {[%emt 0:01:21]} Nc6 {[%emt 0:00:54]} 9. Qa4 {[%emt 0:06:35]} O-O {[%emt 0:20:02]} 10. O-O {[%emt 0:02:01]} Qb6 {[%emt 0:00:44]} 11. Qb5 {[%emt 0:05:21]} Rd8 {[%emt 0:00:51]} 12. Qxb6 {[%emt 0:06:20]} axb6 {[%emt 0:00:02]} 13. Bf4 {[%emt 0:03:55]} d4 {[%emt 0:04:24]} 14. Nb5 {[%emt 0:08:43]} Nd5 {[%emt 0:24:43]} 15. Nc7 {[%emt 0:08:30]} Nxf4 {[%emt 0:00:59]} 16. Nxa8 {[%emt 0:01:03]} Nxe2+ {[%emt 0:00:56]} 17. Kh1 {[%emt 0:00:01]} b5 {[%emt 0:01:32]} 18. Nc7 {[%emt 0:05:33]} d3 {[%emt 0:05:42]} 19. Nxb5 {[%emt 0:12:46]} Bf6 {[%emt 0:02:12]} 20. Rad1 {[%emt 0:09:57]} Bxb2 {[%emt 0:02:24]} 21. Rd2 {[%emt 0:03:27]} Bc1 {[%emt 0:00:54]} 22. Rdd1 {[%emt 0:00:16]} d2 {[%emt 0:01:50]} 23. Nxd2 {[%emt 0:05:33]} Bxd2 {[%emt 0:03:37]} 24. Bf3 {[%emt 0:01:40]} Ned4 {[%emt 0:02:15]} 25. Rxd2 {[%emt 0:01:31]} Nxf3 {[%emt 0:00:33]} 26. Rxd8+ {[%emt 0:00:07]} Nxd8 {[%emt 0:00:01]} 27. Rd1 {[%emt 0:00:21]} Nc6 {[%emt 0:01:53]} 28. Na7 {[%emt 0:00:36]} Be6 {[%emt 0:02:46]} 29. Nxc6 {[%emt 0:00:08]} g6 {[%emt 0:00:15]} 30. Nb4 {[%emt 0:00:13]} Kg7 {[%emt 0:00:53]} 31. Kg2 {[%emt 0:00:54]} Ng5 {[%emt 0:00:02]} 32. f3 {[%emt 0:00:45]} h5 {[%emt 0:00:20]} 33. Rd6 {[%emt 0:00:34]} b5 {[%emt 0:00:36]} 34. h4 {[%emt 0:00:32]} Nh7 {[%emt 0:00:07]} 35. a3 {[%emt 0:00:22]} Nf6 {[%emt 0:00:28]} 36. Rb6 {[%emt 0:00:26]} Bd7 {[%emt 0:02:32]} 37. Rb7 {[%emt 0:00:25]} Be8 {[%emt 0:01:29]} 38. Kf2 {[%emt 0:00:27]} Ng8 {[%emt 0:00:44]} 39. Na6 {[%emt 0:00:38]} 1-0

[Event "Chess House GM December 2019"]
[Site "Aarhus"]
[Date "2019.12.13"]
[Round "3.4"]
[White "Vinter-Schou, Uffe"]
[Black "Pakleza, Zbigniew"]
[Result "0-1"]
[ECO "C41"]
[WhiteElo "2359"]
[BlackElo "2503"]
[Annotator "RC"]
[PlyCount "152"]
[EventDate "2019.12.11"]
[EventType "tourn"]
[EventCountry "DEN"]
[SourceTitle "playchess.com"]
[Source "ChessBase"]
[SourceQuality "1"]
[TimeControl "40/5400+30:1800+30"]

1. e4 {[%emt 0:00:00]} e5 {[%emt 0:00:00]} 2. Nf3 {[%emt 0:00:01]} d6 {[%emt 0:00:00]} 3. d4 {[%emt 0:00:59]} exd4 {[%emt 0:00:00]} 4. Nxd4 {[%emt 0:00:10]} Nf6 {[%emt 0:00:00]} 5. Nc3 {[%emt 0:00:11]} Be7 {[%emt 0:00:00]} 6. Be2 {[%emt 0:00:58]} O-O {[%emt 0:00:06]} 7. O-O {[%emt 0:00:13]} Re8 {[%emt 0:00:13]} 8. Re1 {[%emt 0:00:27]} c6 {[%emt 0:00:42]} 9. a4 {[%emt 0:01:42]} Bf8 {[%emt 0:00:32]} 10. Bf1 {[%emt 0:01:24]} a5 {[%emt 0:00:14]} 11. Bf4 {[%emt 0:11:06]} Na6 {[%emt 0:02:47]} 12. h3 {[%emt 0:03:18]} Qb6 {[%emt 0:06:45]} 13. Qd2 {[%emt 0:02:19]} Nc5 {[%emt 0:27:04]} 14. f3 {[%emt 0:12:24]} Bd7 {[%emt 0:07:59]} 15. Kh1 {[%emt 0:00:24]} Rad8 {[%emt 0:00:38]} 16. b3 {[%emt 0:13:36]} Bc8 {[%emt 0:02:48]} 17. Bg5 {[%emt 0:09:40]} Be7 {[%emt 0:04:31]} 18. Nf5 {[%emt 0:05:55]} Bxf5 {[%emt 0:00:56]} 19. exf5 {[%emt 0:00:02]} Qc7 {[%emt 0:02:28]} 20. Bf4 {[%emt 0:01:02]} Qd7 {[%emt 0:09:07]} 21. g4 {[%emt 0:00:39]} d5 {[%emt 0:00:15]} 22. Qd4 {[%emt 0:05:35]} h6 {[%emt 0:07:24]} 23. Be5 {[%emt 0:03:29]} b6 {[%emt 0:12:26]} 24. Rad1 {[%emt 0:00:13]} Qc8 {[%emt 0:01:07]} 25. Qf4 {[%emt 0:01:16]} Nfd7 {[%emt 0:04:11]} 26. Bc7 {[%emt 0:05:35]} Bh4 {[%emt 0:01:10]} 27. Re2 {[%emt 0:00:38]} Rxe2 {[%emt 0:00:13]} 28. Nxe2 {[%emt 0:00:19]} Re8 {[%emt 0:00:09]} 29. Nd4 {[%emt 0:01:16]} Qb7 {[%emt 0:00:21]} 30. c4 {[%emt 0:02:56]} Nf6 {[%emt 0:02:39]} 31. Bd6 {[%emt 0:04:05]} Bf2 {[%emt 0:00:39]} 32. Be5 {[%emt 0:00:42]} Ncd7 {[%emt 0:00:40]} 33. Bd6 {[%emt 0:07:04]} Nc5 {[%emt 0:03:21]} 34. Qd2 {[%emt 0:03:46]} Nce4 {[%emt 0:02:14]} 35. fxe4 {[%emt 0:00:50]} Nxe4 {[%emt 0:00:02]} 36. Qb2 {[%emt 0:01:52]} Bxd4 {[%emt 0:00:19]} 37. Qxd4 {[%emt 0:00:14]} Nxd6 {[%emt 0:00:14]} 38. Bg2 {[%emt 0:00:42]} f6 {[%emt 0:02:36]} 39. cxd5 {[%emt 0:01:02]} c5 {[%emt 0:00:03]} 40. Qf4 {[%emt 0:01:15]} Re5 {[%emt 0:01:09]} 41. Rc1 {[%emt 0:08:13]} Qe7 {[%emt 0:00:24]} 42. Rc3 {[%emt 0:01:31]} Re1+ {[%emt 0:06:58]} 43. Kh2 {[%emt 0:00:10]} Kf7 {[%emt 0:01:30]} 44. Rg3 {[%emt 0:02:14]} Qe5 {[%emt 0:03:43]} 45. Qxe5 {[%emt 0:04:04]} fxe5 {[%emt 0:00:05]} 46. Rc3 {[%emt 0:00:07]} Kf6 {[%emt 0:14:56]} 47. Kg3 {[%emt 0:00:11]} Re4 {[%emt 0:00:47]} 48. Kf2 {[%emt 0:09:03]} Rd4 {[%emt 0:00:26]} 49. Ke3 {[%emt 0:00:58]} Kg5 {[%emt 0:02:33]} 50. Rc2 {[%emt 0:01:19]} Rb4 {[%emt 0:01:18]} 51. Rc3 {[%emt 0:00:14]} Kf6 {[%emt 0:00:22]} 52. Bf1 {[%emt 0:02:15]} Re4+ {[%emt 0:00:08]} 53. Kf3 {[%emt 0:00:35]} Rf4+ {[%emt 0:00:13]} 54. Kg2 {[%emt 0:00:37]} h5 {[%emt 0:02:23]} 55. gxh5 {[%emt 0:03:19]} Nxf5 {[%emt 0:00:08]} 56. Bb5 {[%emt 0:00:59]} e4 {[%emt 0:01:54]} 57. Bd7 {[%emt 0:00:31]} Ke5 {[%emt 0:00:40]} 58. Be6 {[%emt 0:01:20]} Kd4 {[%emt 0:01:10]} 59. Rc1 {[%emt 0:00:27]} Ne3+ {[%emt 0:00:47]} 60. Kg3 {[%emt 0:00:47]} Ke5 {[%emt 0:00:33]} 61. Rg1 {[%emt 0:00:37]} Nf1+ {[%emt 0:00:48]} 62. Kg2 {[%emt 0:00:23]} Nd2 {[%emt 0:00:16]} 63. Kh1 {[%emt 0:01:38]} e3 {[%emt 0:00:18]} 64. Rg5+ {[%emt 0:00:27]} Kd6 {[%emt 0:00:34]} 65. Bg4 {[%emt 0:00:20]} Ne4 {[%emt 0:00:52]} 66. Rxg7 {[%emt 0:00:46]} Nf2+ {[%emt 0:00:10]} 67. Kg2 {[%emt 0:00:32]} Nxg4 {[%emt 0:00:02]} 68. Rxg4 {[%emt 0:00:32]} e2 {[%emt 0:00:07]} 69. Rxf4 {[%emt 0:00:15]} e1=Q {[%emt 0:00:03]} 70. Rf3 {[%emt 0:00:41]} Qh4 {[%emt 0:00:37]} 71. Rf5 {[%emt 0:00:29]} Qe4+ {[%emt 0:00:10]} 72. Rf3 {[%emt 0:00:01]} Qxd5 {[%emt 0:00:15]} 73. h4 {[%emt 0:00:18]} Qxh5 {[%emt 0:00:12]} 74. Rh3 {[%emt 0:00:05]} Ke5 {[%emt 0:00:13]} 75. Rh1 {[%emt 0:01:16]} Kf4 {[%emt 0:00:14]} 76. Rf1+ {[%emt 0:00:16]} Ke5 0-1

[Event "Chess House GM December 2019"]
[Site "Aarhus"]
[Date "2019.12.13"]
[Round "3.5"]
[White "Smith, Axel"]
[Black "Jacobsen, Mikkel Manosri"]
[Result "1-0"]
[ECO "D46"]
[WhiteElo "2470"]
[BlackElo "2348"]
[Annotator "ChessBase"]
[PlyCount "229"]
[EventDate "2019.12.11"]
[EventType "tourn"]
[EventCountry "DEN"]
[SourceTitle "playchess.com"]
[Source "ChessBase"]
[SourceQuality "1"]
[TimeControl "40/5400+30:1800+30"]

1. Nf3 {[%emt 0:00:00]} d5 {[%emt 0:00:00]} 2. c4 {[%emt 0:00:00]} c6 {[%emt 0:00:23]} 3. e3 {[%emt 0:00:07]} Nf6 {[%emt 0:00:12]} 4. Nc3 {[%emt 0:01:00]} Nbd7 {[%emt 0:01:11]} 5. d4 {[%emt 0:02:21]} e6 {[%emt 0:00:06]} 6. Bd3 {[%emt 0:00:11]} Bd6 {[%emt 0:01:18]} 7. e4 {[%emt 0:01:07]} dxc4 {[%emt 0:03:44]} 8. Bxc4 {[%emt 0:00:02]} e5 {[%emt 0:00:09]} 9. dxe5 {[%emt 0:00:37]} Nxe5 {[%emt 0:03:23]} 10. Nxe5 {[%emt 0:00:03]} Bxe5 {[%emt 0:00:06]} 11. Qxd8+ {[%emt 0:00:02]} Kxd8 {[%emt 0:00:06]} 12. Bxf7 {[%emt 0:00:22]} Rf8 {[%emt 0:01:47]} 13. Bb3 {[%emt 0:25:26]} Bxc3+ {[%emt 0:01:07]} 14. bxc3 {[%emt 0:00:01]} Nxe4 {[%emt 0:00:10]} 15. O-O {[%emt 0:00:49]} Re8 {[%emt 0:14:33]} 16. Re1 {[%emt 0:15:55]} Bf5 {[%emt 0:05:45]} 17. Bc2 {[%emt 0:08:18]} Bg6 {[%emt 0:02:30]} 18. c4 {[%emt 0:12:03]} Nd6 {[%emt 0:08:43]} 19. Bg5+ {[%emt 0:01:07]} Kd7 {[%emt 0:00:06]} 20. Bxg6 {[%emt 0:02:12]} hxg6 {[%emt 0:01:06]} 21. c5 {[%emt 0:00:45]} Rxe1+ {[%emt 0:04:22]} 22. Rxe1 {[%emt 0:00:01]} Nc8 {[%emt 0:00:15]} 23. g4 {[%emt 0:08:21]} b6 {[%emt 0:00:24]} 24. Be3 {[%emt 0:00:44]} Ne7 {[%emt 0:01:58]} 25. Bd4 {[%emt 0:02:28]} Nd5 {[%emt 0:03:08]} 26. Bxg7 {[%emt 0:02:32]} bxc5 {[%emt 0:00:20]} 27. h4 {[%emt 0:02:44]} Rg8 {[%emt 0:07:01]} 28. Be5 {[%emt 0:00:41]} Re8 {[%emt 0:01:20]} 29. Kh2 {[%emt 0:04:37]} c4 {[%emt 0:04:16]} 30. Kg3 {[%emt 0:00:02]} Nb4 {[%emt 0:09:33]} 31. f4 {[%emt 0:00:23]} c5 {[%emt 0:09:48]} 32. Rc1 {[%emt 0:06:00]} Kc6 {[%emt 0:00:01]} 33. Rxc4 {[%emt 0:00:55]} Kd5 {[%emt 0:00:07]} 34. Rc3 {[%emt 0:01:09]} c4 {[%emt 0:02:32]} 35. h5 {[%emt 0:00:45]} gxh5 {[%emt 0:00:26]} 36. gxh5 {[%emt 0:00:00]} Nd3 {[%emt 0:00:23]} 37. Bg7 {[%emt 0:01:56]} Re4 {[%emt 0:07:09]} 38. h6 {[%emt 0:01:45]} Nxf4 {[%emt 0:00:11]} 39. h7 {[%emt 0:01:05]} Ng6 {[%emt 0:00:15]} 40. h8=Q {[%emt 0:00:41]} Nxh8 {[%emt 0:00:07]} 41. Bxh8 {[%emt 0:30:09]} Re8 {[%emt 0:37:30]} 42. Bf6 {[%emt 0:00:22]} Re6 {[%emt 0:01:15]} 43. Bg5 {[%emt 0:00:00]} Ra6 {[%emt 0:00:00]} 44. Rc2 {[%emt 0:00:00]} Ke4 {[%emt 0:00:00]} 45. Rxc4+ {[%emt 0:00:00]} Kd3 {[%emt 0:00:00]} 46. Rc7 {[%emt 0:00:00]} Rxa2 {[%emt 0:00:00]} 47. Kf3 {[%emt 0:00:00]} a5 {[%emt 0:00:00]} 48. Rd7+ {[%emt 0:00:00]} Kc4 {[%emt 0:00:00]} 49. Ke3 {[%emt 0:00:00]} Rg2 {[%emt 0:00:00]} 50. Bf4 {[%emt 0:00:00]} a4 {[%emt 0:00:00]} 51. Ra7 {[%emt 0:00:00]} Kb5 {[%emt 0:00:00]} 52. Kd3 {[%emt 0:00:25]} Rg6 {[%emt 0:00:00]} 53. Kc3 {[%emt 0:02:07]} Rf6 {[%emt 0:00:00]} 54. Be3 {[%emt 0:00:51]} Rc6+ {[%emt 0:00:00]} 55. Kb2 {[%emt 0:00:09]} Re6 {[%emt 0:00:00]} 56. Bd2 {[%emt 0:00:13]} Ra6 {[%emt 0:00:00]} 57. Rh7 {[%emt 0:00:42]} Rd6 {[%emt 0:00:00]} 58. Bc3 {[%emt 0:00:46]} Rc6 {[%emt 0:00:00]} 59. Rh5+ {[%emt 0:00:25]} Rc5 {[%emt 0:00:00]} 60. Rh3 {[%emt 0:00:22]} Rf5 {[%emt 0:00:00]} 61. Ka3 {[%emt 0:00:33]} Rg5 {[%emt 0:00:00]} 62. Rh8 {[%emt 0:02:51]} Rg6 {[%emt 0:00:00]} 63. Rh5+ {[%emt 0:00:30]} Kc4 {[%emt 0:00:00]} 64. Bb4 {[%emt 0:00:16]} Ra6 {[%emt 0:03:10]} 65. Rg5 {[%emt 0:00:02]} Ra8 {[%emt 0:00:14]} 66. Ba5 {[%emt 0:00:01]} Ra6 {[%emt 0:00:25]} 67. Rh5 {[%emt 0:00:15]} Ra7 {[%emt 0:00:07]} 68. Kxa4 {[%emt 0:00:06]} Ra8 {[%emt 0:00:12]} 69. Rh1 {[%emt 0:00:27]} Rb8 {[%emt 0:01:20]} 70. Rc1+ {[%emt 0:00:04]} Kd5 {[%emt 0:00:07]} 71. Bb4 {[%emt 0:00:12]} Rb7 {[%emt 0:00:12]} 72. Kb3 {[%emt 0:00:05]} Rh7 {[%emt 0:00:28]} 73. Rd1+ {[%emt 0:00:07]} Kc6 {[%emt 0:01:03]} 74. Rd6+ {[%emt 0:01:14]} Kc7 {[%emt 0:00:22]} 75. Rg6 {[%emt 0:00:21]} Rh4 {[%emt 0:00:14]} 76. Bc5 {[%emt 0:00:27]} Kd7 {[%emt 0:00:13]} 77. Kc3 {[%emt 0:00:04]} Re4 {[%emt 0:00:09]} 78. Ra6 {[%emt 0:01:50]} Rf4 {[%emt 0:02:01]} 79. Bd4 {[%emt 0:00:12]} Re4 {[%emt 0:00:10]} 80. Kc4 {[%emt 0:00:17]} Re6 {[%emt 0:00:11]} 81. Ra7+ {[%emt 0:00:12]} Kd6 {[%emt 0:00:04]} 82. Ra8 {[%emt 0:01:39]} Kc6 {[%emt 0:00:12]} 83. Ra7 {[%emt 0:01:57]} Kd6 {[%emt 0:00:04]} 84. Ra5 {[%emt 0:00:04]} Kc6 {[%emt 0:00:31]} 85. Be5 {[%emt 0:00:31]} Kb6 {[%emt 0:00:12]} 86. Rd5 {[%emt 0:00:58]} Kc6 {[%emt 0:00:21]} 87. Kd4 {[%emt 0:00:19]} Re8 {[%emt 0:01:49]} 88. Rc5+ {[%emt 0:00:08]} Kb6 {[%emt 0:00:05]} 89. Kc4 {[%emt 0:00:32]} Re6 {[%emt 0:00:11]} 90. Bc7+ {[%emt 0:00:15]} Ka6 {[%emt 0:01:11]} 91. Kd5 {[%emt 0:00:34]} Rh6 {[%emt 0:02:13]} 92. Bd6 {[%emt 0:02:09]} Rh5+ {[%emt 0:00:03]} 93. Be5 {[%emt 0:00:04]} Rh6 {[%emt 0:00:13]} 94. Rc1 {[%emt 0:00:18]} Kb7 {[%emt 0:00:21]} 95. Rg1 {[%emt 0:00:08]} Kb6 {[%emt 0:01:36]} 96. Rb1+ {[%emt 0:00:10]} Ka5 {[%emt 0:00:53]} 97. Bd6 {[%emt 0:00:39]} Rh4 {[%emt 0:00:52]} 98. Bc5 {[%emt 0:01:55]} Rg4 {[%emt 0:02:53]} 99. Bd4 {[%emt 0:00:20]} Ka6 {[%emt 0:01:15]} 100. Rb6+ {[%emt 0:00:52]} Ka5 {[%emt 0:00:04]} 101. Rb8 {[%emt 0:00:27]} Ka6 {[%emt 0:00:31]} 102. Kc4 {[%emt 0:00:28]} Rg6 {[%emt 0:01:19]} 103. Ra8+ {[%emt 0:00:29]} Kb7 {[%emt 0:00:06]} 104. Ra7+ {[%emt 0:00:01]} Kb8 {[%emt 0:01:18]} 105. Rf7 {[%emt 0:00:02]} Kc8 {[%emt 0:01:49]} 106. Kd5 {[%emt 0:00:03]} Rg5+ {[%emt 0:00:58]} 107. Kc6 {[%emt 0:00:46]} Rg6+ {[%emt 0:00:19]} 108. Bf6 {[%emt 0:00:04]} Kb8 {[%emt 0:00:14]} 109. Kb6 {[%emt 0:00:46]} Kc8 {[%emt 0:00:07]} 110. Rc7+ {[%emt 0:00:04]} Kb8 {[%emt 0:00:05]} 111. Rc6 {[%emt 0:00:03]} Rg8 {[%emt 0:00:28]} 112. Be5+ {[%emt 0:01:10]} Ka8 {[%emt 0:00:13]} 113. Kc7 {[%emt 0:01:18]} Ka7 {[%emt 0:01:32]} 114. Bd4+ {[%emt 0:00:24]} Ka8 {[%emt 0:00:06]} 115. Ra6# {[%emt 0:00:06]} 1-0